Workbook

Sheet Sheet1
A1: 附件：
A2: 2023年界首市实验幼儿园公开招聘幼儿教师笔试成绩
A3: 序号 | B3: 报考组别 | C3: 准考证号 | D3: 考场 | E3: 教育公共基础知识 | F3: 学期教育专业知识 | G3: 笔试总成绩 | H3: 笔试合成成绩 | I3: 备注
A4: 1 | B4: 幼儿A组 | C4: 20230101 | D4: 第一考场 | E4: 55 | F4: 41 | G4: =E4+F4 -> 96 | H4: =E4*40%+F4*60% -> 46.6
A5: 2 | B5: 幼儿A组 | C5: 20230102 | D5: 第一考场 | E5: 81 | F5: 48 | G5: 129 | H5: 61.2
A6: 3 | B6: 幼儿A组 | C6: 20230103 | D6: 第一考场 | E6: 58 | F6: 54 | G6: 112 | H6: 55.6
A7: 4 | B7: 幼儿A组 | C7: 20230104 | D7: 第一考场 | E7: 0 | F7: 0 | G7: 0 | H7: 0 | I7: 缺考
A8: 5 | B8: 幼儿A组 | C8: 20230105 | D8: 第一考场 | E8: 72 | F8: 58 | G8: =E8+F8 -> 130 | H8: =E8*40%+F8*60% -> 63.6
A9: 6 | B9: 幼儿A组 | C9: 20230106 | D9: 第一考场 | E9: 70 | F9: 54 | G9: 124 | H9: 60.4
A10: 7 | B10: 幼儿A组 | C10: 20230107 | D10: 第一考场 | E10: 0 | F10: 0 | G10: 0 | H10: 0 | I10: 缺考
A11: 8 | B11: 幼儿A组 | C11: 20230108 | D11: 第一考场 | E11: 61 | F11: 42 | G11: 103 | H11: 49.6
A12: 9 | B12: 幼儿A组 | C12: 20230109 | D12: 第一考场 | E12: 81 | F12: 65 | G12: 146 | H12: 71.4
A13: 10 | B13: 幼儿A组 | C13: 20230110 | D13: 第一考场 | E13: 42 | F13: 27 | G13: 69 | H13: 33
A14: 11 | B14: 幼儿A组 | C14: 20230111 | D14: 第一考场 | E14: 71 | F14: 45 | G14: 116 | H14: 55.4
A15: 12 | B15: 幼儿A组 | C15: 20230112 | D15: 第一考场 | E15: 74 | F15: 63 | G15: 137 | H15: 67.4
A16: 13 | B16: 幼儿A组 | C16: 20230113 | D16: 第一考场 | E16: 72 | F16: 57 | G16: 129 | H16: 63
A17: 14 | B17: 幼儿A组 | C17: 20230114 | D17: 第一考场 | E17: 75 | F17: 49 | G17: 124 | H17: 59.4
A18: 15 | B18: 幼儿A组 | C18: 20230115 | D18: 第一考场 | E18: 72 | F18: 64 | G18: 136 | H18: 67.2
A19: 16 | B19: 幼儿A组 | C19: 20230116 | D19: 第一考场 | E19: 79 | F19: 64.5 | G19: 143.5 | H19: 70.3
A20: 17 | B20: 幼儿A组 | C20: 20230117 | D20: 第一考场 | E20: 70 | F20: 49 | G20: 119 | H20: 57.4
A21: 18 | B21: 幼儿A组 | C21: 20230118 | D21: 第一考场 | E21: 76 | F21: 57 | G21: 133 | H21: 64.6
A22: 19 | B22: 幼儿A组 | C22: 20230119 | D22: 第一考场 | E22: 36 | F22: 40 | G22: 76 | H22: 38.4
A23: 20 | B23: 幼儿A组 | C23: 20230120 | D23: 第一考场 | E23: 61 | F23: 35 | G23: 96 | H23: 45.4
A24: 21 | B24: 幼儿A组 | C24: 20230121 | D24: 第一考场 | E24: 70 | F24: 62 | G24: 132 | H24: 65.2
A25: 22 | B25: 幼儿A组 | C25: 20230122 | D25: 第一考场 | E25: 0 | F25: 0 | G25: 0 | H25: 0 | I25: 缺考
A26: 23 | B26: 幼儿A组 | C26: 20230123 | D26: 第一考场 | E26: 75 | F26: 62 | G26: =E26+F26 -> 137 | H26: =E26*40%+F26*60% -> 67.2
A27: 24 | B27: 幼儿A组 | C27: 20230124 | D27: 第一考场 | E27: 0 | F27: 0 | G27: 0 | H27: 0 | I27: 缺考
A28: 25 | B28: 幼儿A组 | C28: 20230125 | D28: 第一考场 | E28: 76 | F28: 62 | G28: 138 | H28: 67.6
A29: 26 | B29: 幼儿A组 | C29: 20230126 | D29: 第一考场 | E29: 60 | F29: 49.5 | G29: 109.5 | H29: 53.7
A30: 27 | B30: 幼儿A组 | C30: 20230127 | D30: 第一考场 | E30: 69 | F30: 52 | G30: 121 | H30: 58.8
A31: 28 | B31: 幼儿A组 | C31: 20230128 | D31: 第一考场 | E31: 75 | F31: 56 | G31: 131 | H31: 63.6
A32: 29 | B32: 幼儿A组 | C32: 20230129 | D32: 第一考场 | E32: 74 | F32: 61 | G32: 135 | H32: 66.2
A33: 30 | B33: 幼儿A组 | C33: 20230130 | D33: 第一考场 | E33: 0 | F33: 0 | G33: 0 | H33: 0 | I33: 缺考
A34: 31 | B34: 幼儿A组 | C34: 20230201 | D34: 第二考场 | E34: 0 | F34: 0 | G34: 0 | H34: 0 | I34: 缺考
A35: 32 | B35: 幼儿A组 | C35: 20230202 | D35: 第二考场 | E35: 57 | F35: 33 | G35: =E35+F35 -> 90 | H35: =E35*40%+F35*60% -> 42.6
A36: 33 | B36: 幼儿A组 | C36: 20230203 | D36: 第二考场 | E36: 0 | F36: 0 | G36: 0 | H36: 0 | I36: 缺考
A37: 34 | B37: 幼儿A组 | C37: 20230204 | D37: 第二考场 | E37: 0 | F37: 0 | G37: 0 | H37: 0 | I37: 缺考
A38: 35 | B38: 幼儿A组 | C38: 20230205 | D38: 第二考场 | E38: 0 | F38: 0 | G38: 0 | H38: 0 | I38: 缺考
A39: 36 | B39: 幼儿A组 | C39: 20230206 | D39: 第二考场 | E39: 0 | F39: 0 | G39: 0 | H39: 0 | I39: 缺考
A40: 37 | B40: 幼儿A组 | C40: 20230207 | D40: 第二考场 | E40: 46 | F40: 38 | G40: =E40+F40 -> 84 | H40: =E40*40%+F40*60% -> 41.2
A41: 38 | B41: 幼儿A组 | C41: 20230208 | D41: 第二考场 | E41: 0 | F41: 0 | G41: 0 | H41: 0 | I41: 缺考
A42: 39 | B42: 幼儿A组 | C42: 20230209 | D42: 第二考场 | E42: 74 | F42: 71 | G42: 145 | H42: 72.2
A43: 40 | B43: 幼儿A组 | C43: 20230210 | D43: 第二考场 | E43: 68 | F43: 50 | G43: 118 | H43: 57.2
A44: 41 | B44: 幼儿A组 | C44: 20230211 | D44: 第二考场 | E44: 77 | F44: 50 | G44: 127 | H44: 60.8
A45: 42 | B45: 幼儿A组 | C45: 20230212 | D45: 第二考场 | E45: 73 | F45: 56 | G45: 129 | H45: 62.8
A46: 43 | B46: 幼儿A组 | C46: 20230213 | D46: 第二考场 | E46: 67 | F46: 64 | G46: 131 | H46: 65.2
A47: 44 | B47: 幼儿A组 | C47: 20230214 | D47: 第二考场 | E47: 68 | F47: 54.5 | G47: 122.5 | H47: 59.9
A48: 45 | B48: 幼儿A组 | C48: 20230215 | D48: 第二考场 | E48: 72 | F48: 54 | G48: 126 | H48: 61.2
A49: 46 | B49: 幼儿A组 | C49: 20230216 | D49: 第二考场 | E49: 68 | F49: 53.5 | G49: 121.5 | H49: 59.3
A50: 47 | B50: 幼儿A组 | C50: 20230217 | D50: 第二考场 | E50: 63 | F50: 56.5 | G50: 119.5 | H50: 59.1
A51: 48 | B51: 幼儿A组 | C51: 20230218 | D51: 第二考场 | E51: 72 | F51: 56.5 | G51: 128.5 | H51: 62.7
A52: 49 | B52: 幼儿A组 | C52: 20230219 | D52: 第二考场 | E52: 68 | F52: 59 | G52: 127 | H52: 62.6
A53: 50 | B53: 幼儿A组 | C53: 20230220 | D53: 第二考场 | E53: 68 | F53: 58 | G53: 126 | H53: 62
A54: 51 | B54: 幼儿A组 | C54: 20230221 | D54: 第二考场 | E54: 57 | F54: 40.5 | G54: 97.5 | H54: 47.1
A55: 52 | B55: 幼儿A组 | C55: 20230222 | D55: 第二考场 | E55: 75 | F55: 51 | G55: 126 | H55: 60.6
A56: 53 | B56: 幼儿A组 | C56: 20230223 | D56: 第二考场 | E56: 69 | F56: 47 | G56: 116 | H56: 55.8
A57: 54 | B57: 幼儿A组 | C57: 20230224 | D57: 第二考场 | E57: 80 | F57: 64 | G57: 144 | H57: 70.4
A58: 55 | B58: 幼儿A组 | C58: 20230225 | D58: 第二考场 | E58: 74 | F58: 49 | G58: 123 | H58: 59
A59: 56 | B59: 幼儿A组 | C59: 20230226 | D59: 第二考场 | E59: 83 | F59: 59 | G59: 142 | H59: 68.6
A60: 57 | B60: 幼儿A组 | C60: 20230227 | D60: 第二考场 | E60: 70 | F60: 54 | G60: 124 | H60: 60.4
A61: 58 | B61: 幼儿A组 | C61: 20230228 | D61: 第二考场 | E61: 36 | F61: 22 | G61: 58 | H61: 27.6
A62: 59 | B62: 幼儿A组 | C62: 20230229 | D62: 第二考场 | E62: 77 | F62: 59 | G62: 136 | H62: 66.2
A63: 60 | B63: 幼儿A组 | C63: 20230230 | D63: 第二考场 | E63: 72 | F63: 50 | G63: 122 | H63: 58.8
A64: 61 | B64: 幼儿A组 | C64: 20230301 | D64: 第三考场 | E64: 69 | F64: 65 | G64: 134 | H64: 66.6
A65: 62 | B65: 幼儿A组 | C65: 20230302 | D65: 第三考场 | E65: 0 | F65: 0 | G65: 0 | H65: 0 | I65: 缺考
A66: 63 | B66: 幼儿A组 | C66: 20230303 | D66: 第三考场 | E66: 47 | F66: 40 | G66: =E66+F66 -> 87 | H66: =E66*40%+F66*60% -> 42.8
A67: 64 | B67: 幼儿A组 | C67: 20230304 | D67: 第三考场 | E67: 60 | F67: 55 | G67: 115 | H67: 57
A68: 65 | B68: 幼儿A组 | C68: 20230305 | D68: 第三考场 | E68: 56 | F68: 43 | G68: 99 | H68: 48.2
A69: 66 | B69: 幼儿A组 | C69: 20230306 | D69: 第三考场 | E69: 63 | F69: 53.5 | G69: 116.5 | H69: 57.3
A70: 67 | B70: 幼儿A组 | C70: 20230307 | D70: 第三考场 | E70: 74 | F70: 50 | G70: 124 | H70: 59.6
A71: 68 | B71: 幼儿A组 | C71: 20230308 | D71: 第三考场 | E71: 0 | F71: 0 | G71: 0 | H71: 0 | I71: 缺考
A72: 69 | B72: 幼儿A组 | C72: 20230309 | D72: 第三考场 | E72: 61 | F72: 50.5 | G72: =E72+F72 -> 111.5 | H72: =E72*40%+F72*60% -> 54.7
A73: 70 | B73: 幼儿A组 | C73: 20230310 | D73: 第三考场 | E73: 75 | F73: 55 | G73: 130 | H73: 63
A74: 71 | B74: 幼儿A组 | C74: 20230311 | D74: 第三考场 | E74: 77 | F74: 61 | G74: 138 | H74: 67.4
A75: 72 | B75: 幼儿A组 | C75: 20230312 | D75: 第三考场 | E75: 72 | F75: 66 | G75: 138 | H75: 68.4
A76: 73 | B76: 幼儿A组 | C76: 20230313 | D76: 第三考场 | E76: 0 | F76: 0 | G76: 0 | H76: 0 | I76: 缺考
A77: 74 | B77: 幼儿A组 | C77: 20230314 | D77: 第三考场 | E77: 0 | F77: 0 | G77: 0 | H77: 0 | I77: 缺考
A78: 75 | B78: 幼儿A组 | C78: 20230315 | D78: 第三考场 | E78: 0 | F78: 0 | G78: 0 | H78: 0 | I78: 缺考
A79: 76 | B79: 幼儿A组 | C79: 20230316 | D79: 第三考场 | E79: 78 | F79: 58 | G79: =E79+F79 -> 136 | H79: =E79*40%+F79*60% -> 66
A80: 77 | B80: 幼儿A组 | C80: 20230317 | D80: 第三考场 | E80: 57 | F80: 55 | G80: 112 | H80: 55.8
A81: 78 | B81: 幼儿A组 | C81: 20230318 | D81: 第三考场 | E81: 67 | F81: 56 | G81: 123 | H81: 60.4
A82: 79 | B82: 幼儿A组 | C82: 20230319 | D82: 第三考场 | E82: 0 | F82: 0 | G82: 0 | H82: 0 | I82: 缺考
A83: 80 | B83: 幼儿A组 | C83: 20230320 | D83: 第三考场 | E83: 71 | F83: 50 | G83: =E83+F83 -> 121 | H83: =E83*40%+F83*60% -> 58.4
A84: 81 | B84: 幼儿A组 | C84: 20230321 | D84: 第三考场 | E84: 53 | F84: 40 | G84: 93 | H84: 45.2
A85: 82 | B85: 幼儿A组 | C85: 20230322 | D85: 第三考场 | E85: 74 | F85: 62 | G85: 136 | H85: 66.8
A86: 83 | B86: 幼儿A组 | C86: 20230323 | D86: 第三考场 | E86: 67 | F86: 59.5 | G86: 126.5 | H86: 62.5
A87: 84 | B87: 幼儿A组 | C87: 20230324 | D87: 第三考场 | E87: 63 | F87: 52 | G87: 115 | H87: 56.4
A88: 85 | B88: 幼儿A组 | C88: 20230325 | D88: 第三考场 | E88: 57 | F88: 41 | G88: 98 | H88: 47.4
A89: 86 | B89: 幼儿A组 | C89: 20230326 | D89: 第三考场 | E89: 81 | F89: 69 | G89: 150 | H89: 73.8
A90: 87 | B90: 幼儿A组 | C90: 20230327 | D90: 第三考场 | E90: 61 | F90: 52 | G90: 113 | H90: 55.6
A91: 88 | B91: 幼儿A组 | C91: 20230328 | D91: 第三考场 | E91: 64 | F91: 45 | G91: 109 | H91: 52.6
A92: 89 | B92: 幼儿A组 | C92: 20230329 | D92: 第三考场 | E92: 0 | F92: 0 | G92: 0 | H92: 0 | I92: 缺考
A93: 90 | B93: 幼儿A组 | C93: 20230330 | D93: 第三考场 | E93: 72 | F93: 56 | G93: =E93+F93 -> 128 | H93: =E93*40%+F93*60% -> 62.4
A94: 91 | B94: 幼儿A组 | C94: 20230401 | D94: 第四考场 | E94: 49 | F94: 42 | G94: 91 | H94: 44.8
A95: 92 | B95: 幼儿A组 | C95: 20230402 | D95: 第四考场 | E95: 79 | F95: 63 | G95: 142 | H95: 69.4
A96: 93 | B96: 幼儿A组 | C96: 20230403 | D96: 第四考场 | E96: 69 | F96: 52 | G96: 121 | H96: 58.8
A97: 94 | B97: 幼儿A组 | C97: 20230404 | D97: 第四考场 | E97: 72 | F97: 54 | G97: 126 | H97: 61.2
A98: 95 | B98: 幼儿A组 | C98: 20230405 | D98: 第四考场 | E98: 0 | F98: 0 | G98: 0 | H98: 0 | I98: 缺考
A99: 96 | B99: 幼儿A组 | C99: 20230406 | D99: 第四考场 | E99: 67 | F99: 44 | G99: =E99+F99 -> 111 | H99: =E99*40%+F99*60% -> 53.2
A100: 97 | B100: 幼儿A组 | C100: 20230407 | D100: 第四考场 | E100: 66 | F100: 55 | G100: 121 | H100: 59.4
A101: 98 | B101: 幼儿A组 | C101: 20230408 | D101: 第四考场 | E101: 0 | F101: 0 | G101: 0 | H101: 0 | I101: 缺考
A102: 99 | B102: 幼儿A组 | C102: 20230409 | D102: 第四考场 | E102: 69 | F102: 39 | G102: 108 | H102: 51
A103: 100 | B103: 幼儿A组 | C103: 20230410 | D103: 第四考场 | E103: 52 | F103: 40 | G103: 92 | H103: 44.8
A104: 101 | B104: 幼儿A组 | C104: 20230411 | D104: 第四考场 | E104: 63 | F104: 51 | G104: 114 | H104: 55.8
A105: 102 | B105: 幼儿A组 | C105: 20230412 | D105: 第四考场 | E105: 0 | F105: 0 | G105: 0 | H105: 0 | I105: 缺考
A106: 103 | B106: 幼儿A组 | C106: 20230413 | D106: 第四考场 | E106: 73 | F106: 56 | G106: =E106+F106 -> 129 | H106: =E106*40%+F106*60% -> 62.8
A107: 104 | B107: 幼儿A组 | C107: 20230414 | D107: 第四考场 | E107: 52 | F107: 39 | G107: 91 | H107: 44.2
A108: 105 | B108: 幼儿A组 | C108: 20230415 | D108: 第四考场 | E108: 60 | F108: 44 | G108: 104 | H108: 50.4
A109: 106 | B109: 幼儿A组 | C109: 20230416 | D109: 第四考场 | E109: 0 | F109: 0 | G109: 0 | H109: 0 | I109: 缺考
A110: 107 | B110: 幼儿A组 | C110: 20230417 | D110: 第四考场 | E110: 0 | F110: 0 | G110: 0 | H110: 0 | I110: 缺考
A111: 108 | B111: 幼儿A组 | C111: 20230418 | D111: 第四考场 | E111: 68 | F111: 56 | G111: =E111+F111 -> 124 | H111: =E111*40%+F111*60% -> 60.8
A112: 109 | B112: 幼儿A组 | C112: 20230419 | D112: 第四考场 | E112: 56 | F112: 49 | G112: 105 | H112: 51.8
A113: 110 | B113: 幼儿A组 | C113: 20230420 | D113: 第四考场 | E113: 69 | F113: 46 | G113: 115 | H113: 55.2
A114: 111 | B114: 幼儿A组 | C114: 20230421 | D114: 第四考场 | E114: 69 | F114: 59 | G114: 128 | H114: 63
A115: 112 | B115: 幼儿A组 | C115: 20230422 | D115: 第四考场 | E115: 70 | F115: 45 | G115: 115 | H115: 55
A116: 113 | B116: 幼儿A组 | C116: 20230423 | D116: 第四考场 | E116: 60 | F116: 43 | G116: 103 | H116: 49.8
A117: 114 | B117: 幼儿A组 | C117: 20230424 | D117: 第四考场 | E117: 79 | F117: 57 | G117: 136 | H117: 65.8
A118: 115 | B118: 幼儿A组 | C118: 20230425 | D118: 第四考场 | E118: 77 | F118: 49 | G118: 126 | H118: 60.2
A119: 116 | B119: 幼儿A组 | C119: 20230426 | D119: 第四考场 | E119: 65 | F119: 50 | G119: 115 | H119: 56
A120: 117 | B120: 幼儿A组 | C120: 20230427 | D120: 第四考场 | E120: 74 | F120: 48 | G120: 122 | H120: 58.4
A121: 118 | B121: 幼儿A组 | C121: 20230428 | D121: 第四考场 | E121: 61 | F121: 44 | G121: 105 | H121: 50.8
A122: 119 | B122: 幼儿A组 | C122: 20230429 | D122: 第四考场 | E122: 61 | F122: 37 | G122: 98 | H122: 46.6
A123: 120 | B123: 幼儿A组 | C123: 20230430 | D123: 第四考场 | E123: 52 | F123: 35 | G123: 87 | H123: 41.8
A124: 121 | B124: 幼儿A组 | C124: 20230501 | D124: 第五考场 | E124: 47 | F124: 37 | G124: 84 | H124: 41
A125: 122 | B125: 幼儿A组 | C125: 20230502 | D125: 第五考场 | E125: 61 | F125: 48 | G125: 109 | H125: 53.2
A126: 123 | B126: 幼儿A组 | C126: 20230503 | D126: 第五考场 | E126: 56 | F126: 48.5 | G126: 104.5 | H126: 51.5
A127: 124 | B127: 幼儿A组 | C127: 20230504 | D127: 第五考场 | E127: 40 | F127: 43.5 | G127: 83.5 | H127: 42.1
A128: 125 | B128: 幼儿A组 | C128: 20230505 | D128: 第五考场 | E128: 48 | F128: 50 | G128: 98 | H128: 49.2
A129: 126 | B129: 幼儿A组 | C129: 20230506 | D129: 第五考场 | E129: 48 | F129: 46.5 | G129: 94.5 | H129: 47.1
A130: 127 | B130: 幼儿A组 | C130: 20230507 | D130: 第五考场 | E130: 0 | F130: 0 | G130: 0 | H130: 0 | I130: 缺考
A131: 128 | B131: 幼儿A组 | C131: 20230508 | D131: 第五考场 | E131: 56 | F131: 53.5 | G131: =E131+F131 -> 109.5 | H131: =E131*40%+F131*60% -> 54.5
A132: 129 | B132: 幼儿A组 | C132: 20230509 | D132: 第五考场 | E132: 64 | F132: 59 | G132: 123 | H132: 61
A133: 130 | B133: 幼儿A组 | C133: 20230510 | D133: 第五考场 | E133: 59 | F133: 35 | G133: 94 | H133: 44.6
A134: 131 | B134: 幼儿A组 | C134: 20230511 | D134: 第五考场 | E134: 69 | F134: 66 | G134: 135 | H134: 67.2
A135: 132 | B135: 幼儿A组 | C135: 20230512 | D135: 第五考场 | E135: 48 | F135: 34 | G135: 82 | H135: 39.6
A136: 133 | B136: 幼儿A组 | C136: 20230513 | D136: 第五考场 | E136: 55 | F136: 53 | G136: 108 | H136: 53.8
A137: 134 | B137: 幼儿A组 | C137: 20230514 | D137: 第五考场 | E137: 0 | F137: 0 | G137: 0 | H137: 0 | I137: 缺考
A138: 135 | B138: 幼儿A组 | C138: 20230515 | D138: 第五考场 | E138: 0 | F138: 0 | G138: 0 | H138: 0 | I138: 缺考
A139: 136 | B139: 幼儿A组 | C139: 20230516 | D139: 第五考场 | E139: 60 | F139: 55 | G139: =E139+F139 -> 115 | H139: =E139*40%+F139*60% -> 57
A140: 137 | B140: 幼儿A组 | C140: 20230517 | D140: 第五考场 | E140: 48 | F140: 41 | G140: 89 | H140: 43.8
A141: 138 | B141: 幼儿A组 | C141: 20230518 | D141: 第五考场 | E141: 71 | F141: 64 | G141: 135 | H141: 66.8
A142: 139 | B142: 幼儿A组 | C142: 20230519 | D142: 第五考场 | E142: 65 | F142: 60.5 | G142: 125.5 | H142: 62.3
A143: 140 | B143: 幼儿A组 | C143: 20230520 | D143: 第五考场 | E143: 72 | F143: 66 | G143: 138 | H143: 68.4
A144: 141 | B144: 幼儿A组 | C144: 20230521 | D144: 第五考场 | E144: 0 | F144: 0 | G144: 0 | H144: 0 | I144: 缺考
A145: 142 | B145: 幼儿A组 | C145: 20230522 | D145: 第五考场 | E145: 69 | F145: 57 | G145: =E145+F145 -> 126 | H145: =E145*40%+F145*60% -> 61.8
A146: 143 | B146: 幼儿A组 | C146: 20230523 | D146: 第五考场 | E146: 60 | F146: 49.5 | G146: 109.5 | H146: 53.7
A147: 144 | B147: 幼儿A组 | C147: 20230524 | D147: 第五考场 | E147: 58 | F147: 37 | G147: 95 | H147: 45.4
A148: 145 | B148: 幼儿A组 | C148: 20230525 | D148: 第五考场 | E148: 0 | F148: 0 | G148: 0 | H148: 0 | I148: 缺考
A149: 146 | B149: 幼儿A组 | C149: 20230526 | D149: 第五考场 | E149: 0 | F149: 0 | G149: 0 | H149: 0 | I149: 缺考
A150: 147 | B150: 幼儿A组 | C150: 20230527 | D150: 第五考场 | E150: 70 | F150: 53.5 | G150: =E150+F150 -> 123.5 | H150: =E150*40%+F150*60% -> 60.1
A151: 148 | B151: 幼儿A组 | C151: 20230528 | D151: 第五考场 | E151: 75 | F151: 56 | G151: 131 | H151: 63.6
A152: 149 | B152: 幼儿A组 | C152: 20230529 | D152: 第五考场 | E152: 68 | F152: 58 | G152: 126 | H152: 62
A153: 150 | B153: 幼儿A组 | C153: 20230530 | D153: 第五考场 | E153: 74 | F153: 65.5 | G153: 139.5 | H153: 68.9
A154: 151 | B154: 幼儿A组 | C154: 20230601 | D154: 第六考场 | E154: 68 | F154: 39.5 | G154: 107.5 | H154: 50.9
A155: 152 | B155: 幼儿A组 | C155: 20230602 | D155: 第六考场 | E155: 54 | F155: 42 | G155: 96 | H155: 46.8
A156: 153 | B156: 幼儿A组 | C156: 20230603 | D156: 第六考场 | E156: 61 | F156: 54.5 | G156: 115.5 | H156: 57.1
A157: 154 | B157: 幼儿A组 | C157: 20230604 | D157: 第六考场 | E157: 77 | F157: 65 | G157: 142 | H157: 69.8
A158: 155 | B158: 幼儿A组 | C158: 20230605 | D158: 第六考场 | E158: 71 | F158: 55 | G158: 126 | H158: 61.4
A159: 156 | B159: 幼儿A组 | C159: 20230606 | D159: 第六考场 | E159: 80 | F159: 52 | G159: 132 | H159: 63.2
A160: 157 | B160: 幼儿A组 | C160: 20230607 | D160: 第六考场 | E160: 53 | F160: 39 | G160: 92 | H160: 44.6
A161: 158 | B161: 幼儿A组 | C161: 20230608 | D161: 第六考场 | E161: 61 | F161: 40 | G161: 101 | H161: 48.4
A162: 159 | B162: 幼儿A组 | C162: 20230609 | D162: 第六考场 | E162: 74 | F162: 52 | G162: 126 | H162: 60.8
A163: 160 | B163: 幼儿A组 | C163: 20230610 | D163: 第六考场 | E163: 42 | F163: 23 | G163: 65 | H163: 30.6
A164: 161 | B164: 幼儿A组 | C164: 20230611 | D164: 第六考场 | E164: 0 | F164: 0 | G164: 0 | H164: 0 | I164: 缺考
A165: 162 | B165: 幼儿A组 | C165: 20230612 | D165: 第六考场 | E165: 47 | F165: 33 | G165: =E165+F165 -> 80 | H165: =E165*40%+F165*60% -> 38.6
A166: 163 | B166: 幼儿A组 | C166: 20230613 | D166: 第六考场 | E166: 59 | F166: 43 | G166: 102 | H166: 49.4
A167: 164 | B167: 幼儿A组 | C167: 20230614 | D167: 第六考场 | E167: 76 | F167: 67 | G167: 143 | H167: 70.6
A168: 165 | B168: 幼儿A组 | C168: 20230615 | D168: 第六考场 | E168: 38 | F168: 22 | G168: 60 | H168: 28.4
A169: 166 | B169: 幼儿A组 | C169: 20230616 | D169: 第六考场 | E169: 69 | F169: 65 | G169: 134 | H169: 66.6
A170: 167 | B170: 幼儿A组 | C170: 20230617 | D170: 第六考场 | E170: 49 | F170: 30 | G170: 79 | H170: 37.6
A171: 168 | B171: 幼儿A组 | C171: 20230618 | D171: 第六考场 | E171: 69 | F171: 52 | G171: 121 | H171: 58.8
A172: 169 | B172: 幼儿A组 | C172: 20230619 | D172: 第六考场 | E172: 0 | F172: 0 | G172: 0 | H172: 0 | I172: 缺考
A173: 170 | B173: 幼儿A组 | C173: 20230620 | D173: 第六考场 | E173: 49 | F173: 48 | G173: =E173+F173 -> 97 | H173: =E173*40%+F173*60% -> 48.4
A174: 171 | B174: 幼儿A组 | C174: 20230621 | D174: 第六考场 | E174: 49 | F174: 38 | G174: 87 | H174: 42.4
A175: 172 | B175: 幼儿A组 | C175: 20230622 | D175: 第六考场 | E175: 47 | F175: 41 | G175: 88 | H175: 43.4
A176: 173 | B176: 幼儿A组 | C176: 20230623 | D176: 第六考场 | E176: 59 | F176: 51 | G176: 110 | H176: 54.2
A177: 174 | B177: 幼儿A组 | C177: 20230624 | D177: 第六考场 | E177: 31 | F177: 22 | G177: 53 | H177: 25.6
A178: 175 | B178: 幼儿A组 | C178: 20230625 | D178: 第六考场 | E178: 65 | F178: 50 | G178: 115 | H178: 56
A179: 176 | B179: 幼儿A组 | C179: 20230626 | D179: 第六考场 | E179: 0 | F179: 0 | G179: 0 | H179: 0 | I179: 缺考
A180: 177 | B180: 幼儿A组 | C180: 20230627 | D180: 第六考场 | E180: 62 | F180: 48 | G180: =E180+F180 -> 110 | H180: =E180*40%+F180*60% -> 53.6
A181: 178 | B181: 幼儿A组 | C181: 20230628 | D181: 第六考场 | E181: 67 | F181: 45.5 | G181: 112.5 | H181: 54.1
A182: 179 | B182: 幼儿A组 | C182: 20230629 | D182: 第六考场 | E182: 60 | F182: 51 | G182: 111 | H182: 54.6
A183: 180 | B183: 幼儿A组 | C183: 20230630 | D183: 第六考场 | E183: 58 | F183: 46 | G183: 104 | H183: 50.8
A184: 181 | B184: 幼儿A组 | C184: 20230701 | D184: 第七考场 | E184: 56 | F184: 47 | G184: 103 | H184: 50.6
A185: 182 | B185: 幼儿A组 | C185: 20230702 | D185: 第七考场 | E185: 0 | F185: 0 | G185: 0 | H185: 0 | I185: 缺考
A186: 183 | B186: 幼儿A组 | C186: 20230703 | D186: 第七考场 | E186: 73 | F186: 59 | G186: =E186+F186 -> 132 | H186: =E186*40%+F186*60% -> 64.6
A187: 184 | B187: 幼儿A组 | C187: 20230704 | D187: 第七考场 | E187: 72 | F187: 58 | G187: 130 | H187: 63.6
A188: 185 | B188: 幼儿A组 | C188: 20230705 | D188: 第七考场 | E188: 69 | F188: 62 | G188: 131 | H188: 64.8
A189: 186 | B189: 幼儿A组 | C189: 20230706 | D189: 第七考场 | E189: 61 | F189: 44 | G189: 105 | H189: 50.8
A190: 187 | B190: 幼儿A组 | C190: 20230707 | D190: 第七考场 | E190: 54 | F190: 40.5 | G190: 94.5 | H190: 45.9
A191: 188 | B191: 幼儿A组 | C191: 20230708 | D191: 第七考场 | E191: 38 | F191: 37 | G191: 75 | H191: 37.4
A192: 189 | B192: 幼儿A组 | C192: 20230709 | D192: 第七考场 | E192: 58 | F192: 43 | G192: 101 | H192: 49
A193: 190 | B193: 幼儿A组 | C193: 20230710 | D193: 第七考场 | E193: 54 | F193: 35 | G193: 89 | H193: 42.6
A194: 191 | B194: 幼儿A组 | C194: 20230711 | D194: 第七考场 | E194: 63 | F194: 46 | G194: 109 | H194: 52.8
A195: 192 | B195: 幼儿A组 | C195: 20230712 | D195: 第七考场 | E195: 0 | F195: 0 | G195: 0 | H195: 0 | I195: 缺考
A196: 193 | B196: 幼儿A组 | C196: 20230713 | D196: 第七考场 | E196: 76 | F196: 56 | G196: =E196+F196 -> 132 | H196: =E196*40%+F196*60% -> 64
A197: 194 | B197: 幼儿A组 | C197: 20230714 | D197: 第七考场 | E197: 0 | F197: 0 | G197: 0 | H197: 0 | I197: 缺考
A198: 195 | B198: 幼儿A组 | C198: 20230715 | D198: 第七考场 | E198: 0 | F198: 0 | G198: 0 | H198: 0 | I198: 缺考
A199: 196 | B199: 幼儿A组 | C199: 20230716 | D199: 第七考场 | E199: 0 | F199: 0 | G199: 0 | H199: 0 | I199: 缺考
A200: 197 | B200: 幼儿A组 | C200: 20230717 | D200: 第七考场 | E200: 73 | F200: 46 | G200: 119 | H200: 56.8
... 588 more rows
